bitfinex-derivatives/quotes_ETHF0:USTF0_20250105
["timestamp","ask_amount","ask_price","bid_price","bid_amount"]
[1736116908335,0.41180926,3645.1,3644.8,2.68615098]
[1736116908527,4.26943436,3644.9,3644.8,2.93311098]
[1736116909432,0.41180926,3645.1,3644.8,2.93311098]
[1736116910628,6.74289258,3645.0,3644.8,2.93311098]
[1736116911837,6.74289258,3644.9,3644.8,2.93311098]
[1736116912834,0.41180926,3644.9,3644.8,2.93311098]
[1736116914135,12.08545031,3644.9,3644.8,2.93311098]
[1736116915431,5.75436699,3644.9,3644.8,2.93311098]
[1736116916533,0.41180926,3644.9,3644.8,2.93311098]
[1736116917341,0.41180926,3644.9,3644.7,0.99404673]
[1736116917747,13.17456032,3644.9,3644.7,0.99404673]
[1736116918339,13.17456032,3644.9,3644.8,0.24696]
[1736116918639,6.43166774,3645.0,3644.8,0.24696]
[1736116919247,6.63437252,3644.9,3644.8,0.24696]
[1736116921639,10.83621925,3644.9,3644.2,3.2078]
[1736116921945,0.24699,3644.3,3644.2,3.2078]
[1736116922445,0.24699,3644.4,3644.2,3.2078]
[1736116922645,0.24699,3644.3,3644.2,3.2078]
[1736116923142,6.88136252,3644.3,3644.2,3.2078]
[1736116923347,6.63437252,3644.3,3644.2,3.2078]
[1736116923652,6.63437252,3644.3,3644.2,3.8795]
[1736116926251,6.88136252,3644.3,3644.2,3.8795]
[1736116928947,6.63437252,3644.3,3644.2,3.8795]
[1736116934751,13.0982533,3644.3,3644.2,3.8795]
[1736116935753,13.09587525,3644.3,3644.2,3.8795]
[1736116936155,6.63199447,3644.3,3644.2,3.8795]
[1736116937359,6.63199447,3644.3,3644.2,6.082853]
[1736116938456,6.60039447,3644.3,3644.2,6.082853]
[1736116938656,6.60039447,3644.3,3644.2,3.61240414]
[1736116939160,11.98717913,3644.3,3644.2,3.61240414]
[1736116939959,6.60039447,3644.3,3644.2,3.61240414]
[1736116940662,0.41171797,3644.3,3644.2,3.61240414]
[1736116943063,5.79850295,3644.3,3644.2,3.61240414]
[1736116944162,0.41171797,3644.3,3644.2,3.61240414]
[1736116947065,0.41171797,3644.3,3644.2,1.66586922]
[1736116949262,6.47142877,3644.3,3644.2,1.66586922]
[1736116953865,6.47142877,3644.3,3644.2,0.6717]
[1736116954066,6.47142877,3644.3,3644.2,1.66586922]
[1736116958169,6.47142877,3644.3,3644.2,1.24116922]
[1736116958474,6.47142877,3644.3,3644.2,0.247]
[1736116959969,6.47142877,3644.3,3644.2,1.24116922]
[1736116960175,2.56847877,3644.3,3644.2,7.23533844]
[1736116960478,5.79227955,3644.4,3644.3,0.24699]
[1736116960775,7.50361237,3645.1,3645.0,0.24695]
[1736116960977,7.50361237,3645.1,3645.0,1.24111922]
[1736116961871,0.4097,3645.2,3645.1,0.24694]
[1736116962272,0.8176,3645.2,3645.1,0.24694]
[1736116967081,3.2078,3645.6,3645.0,0.99416922]
[1736116967283,1.2656,3645.8,3645.4,0.99416922]
[1736116967682,1.2656,3645.8,3645.6,0.2469]
[1736116968086,1.2656,3645.8,3645.4,0.99416922]
[1736116968283,1.2656,3645.8,3645.5,0.24691]
[1736116968785,0.99416922,3645.7,3645.5,0.24691]
[1736116969181,1.2656,3645.8,3645.5,0.24691]
[1736116969580,1.51249,3645.8,3645.5,0.24691]
[1736116970380,5.38135371,3645.6,3645.5,0.24691]
[1736116970981,5.38135371,3645.6,3645.2,4.20196922]
[1736116971181,5.38135371,3645.6,3645.4,0.24691]
[1736116971691,11.08061741,3645.5,3645.4,0.24691]
[1736116972684,5.6992637,3645.5,3645.4,0.24691]
[1736116973889,5.6992637,3645.5,3645.4,1.24107922]
[1736116974799,5.6992637,3645.5,3645.4,0.24691]
[1736116979696,5.38135371,3645.7,3645.4,0.24691]
[1736116980291,5.38135371,3645.7,3645.3,0.99416922]
[1736116980487,5.38135371,3645.7,3645.5,0.24691]
[1736116980690,6.10445619,3645.6,3645.5,0.24691]
[1736116980892,6.10445619,3645.6,3645.3,0.99416922]
[1736116981196,6.10445619,3645.6,3645.4,0.24692]
[1736116983091,0.99416922,3645.5,3645.0,3.2078]
[1736116983296,0.99416922,3645.5,3644.2,3.2078]
[1736116983297,3.2078,3645.1,3644.2,3.2078]
[1736116983497,0.24698,3644.5,3644.2,3.4548]
[1736116983794,0.24699,3644.4,3644.2,3.4548]
[1736116983995,0.8429,3644.3,3644.2,3.4548]
[1736116984397,4.06642112,3644.3,3644.2,3.4548]
[1736116985404,4.47805935,3644.3,3644.2,3.4548]
[1736116988300,3.45791123,3644.3,3643.8,3.2078]
[1736116988507,3.45791123,3644.3,3643.9,0.24702]
[1736116988508,0.247,3644.2,3643.9,0.24702]
[1736116989393,4.29802816,3644.0,3643.8,3.2078]
[1736116989593,4.29802816,3644.0,3643.8,3.45483]
[1736116990404,4.70966639,3644.0,3643.8,3.45483]
[1736116990604,4.70966639,3644.0,3643.9,0.24702]
[1736116991404,0.41163823,3644.1,3643.9,0.24702]
[1736116992405,6.09725449,3644.1,3643.9,0.24702]
[1736116993309,4.29389836,3644.0,3643.6,3.2078]
[1736116993508,4.54090836,3644.0,3643.6,3.2078]
[1736116993807,4.54090836,3644.0,3643.7,0.24703]
[1736116994008,4.54090836,3644.0,3643.8,0.24703]
[1736116994705,4.70553659,3643.9,3643.8,0.24703]
[1736116995809,0.41163823,3643.9,3643.8,0.24703]
[1736116998403,4.70553659,3644.0,3643.6,3.2078]
[1736116998609,0.4412,3643.8,3643.7,0.24703]
[1736116998806,0.4412,3643.8,3643.4,1.075]
[1736116999009,0.8941,3643.7,3643.6,0.24704]
[1736117004122,3.03852383,3643.7,3643.6,0.24704]
[1736117007215,3.03852383,3643.7,3643.6,1.24160705]
[1736117009819,3.03852383,3643.7,3643.6,0.24704]
[1736117017425,0.8941,3643.7,3643.6,0.24704]
[1736117022031,4.52403891,3643.7,3643.6,0.24704]
[1736117023727,1.30591577,3643.7,3643.6,0.24704]
[1736117024928,0.8941,3643.7,3643.6,0.24704]
[1736117025934,5.59981413,3643.7,3643.6,0.24704]
[1736117027334,1.30591577,3643.7,3643.6,0.24704]
[1736117029425,12.31880682,3643.7,3643.6,0.24704]
[1736117030928,6.93745311,3643.7,3643.6,0.24704]
[1736117031830,1.30591577,3643.7,3643.6,0.24704]
[1736117033133,6.93745311,3643.7,3643.6,0.24704]
[1736117037827,6.04335311,3643.7,3643.6,0.24704]
[1736117038528,0.41181577,3643.7,3643.6,0.24704]
[1736117039530,5.80337613,3643.7,3643.6,0.24704]
[1736117040735,0.41181577,3643.7,3643.6,0.24704]
[1736117047433,0.41181577,3643.7,3643.6,1.31404]
[1736117053734,0.41181577,3643.7,3643.6,0.24704]
[1736117053931,0.41181577,3643.7,3643.6,1.30904]
[1736117055032,6.04335311,3643.7,3643.6,1.30904]
[1736117055234,7.11165311,3643.7,3643.6,2.30360705]
[1736117055640,7.11165311,3643.7,3643.6,1.24160705]
[1736117055942,7.11165311,3643.7,3643.6,2.30360705]
[1736117058842,7.11165311,3643.7,3643.6,1.30904]
[1736117059040,7.11165311,3643.7,3643.6,1.062]
[1736117060250,7.11165311,3643.7,3643.6,1.30904]
[1736117066147,1.48011577,3643.7,3643.6,1.30904]
[1736117068351,7.12223716,3643.7,3643.6,1.30904]
[1736117069443,1.48011577,3643.7,3643.6,1.30904]
[1736117075452,7.12282456,3643.7,3643.6,1.30904]
[1736117080755,12.51438492,3643.7,3643.6,1.30904]
[1736117085758,7.12282456,3643.7,3643.6,1.30904]
[1736117100672,7.12282456,3643.7,3643.6,0.24704]
[1736117118985,7.12282456,3643.7,3643.5,0.96669105]
[1736117120386,1.0683,3643.7,3643.6,0.24704]
[1736117121392,7.1191574,3643.7,3643.6,0.24704]
[1736117160713,8.11372445,3643.7,3643.6,0.24704]
[1736117163312,17.13778332,3643.7,3643.3,0.5539]
[1736117163517,0.99456705,3643.5,3643.3,0.5539]
[1736117163719,0.99456705,3643.5,3643.4,0.24705]
[1736117165026,7.04542445,3643.5,3643.4,0.24705]
[1736117170323,7.04542445,3643.5,3642.9,0.593]
[1736117170529,0.99456705,3643.1,3643.0,0.24708]
[1736117170719,0.99456705,3643.1,3642.9,0.24708]
[1736117171030,1.7265,3643.0,3642.9,0.24708]
[1736117171230,1.7265,3643.0,3642.7,3.2078]
[1736117171427,0.99456705,3642.9,3642.8,0.24709]
[1736117172527,7.04542445,3642.9,3642.8,0.24709]
[1736117175733,12.43369674,3642.9,3642.8,0.24709]
[1736117177837,12.43369674,3642.9,3642.4,3.61900297]
[1736117178441,0.99456705,3642.7,3642.5,0.24712]
[1736117178640,4.31117402,3642.6,3642.5,0.24712]
[1736117178843,4.90417402,3642.6,3642.5,0.24712]
[1736117179842,1.00481024,3642.6,3642.5,0.82602]
[1736117180138,1.00481024,3642.6,3642.5,0.48747542]
[1736117180338,1.00481024,3642.6,3642.5,0.73459542]
[1736117182636,1.00481024,3642.6,3642.5,0.24712]
[1736117183641,4.21261024,3642.6,3642.5,0.24712]
[1736117183943,8.52378426,3642.6,3642.5,0.24712]
[1736117184838,15.21451628,3642.6,3642.5,0.24712]
[1736117187844,12.00671628,3642.6,3642.5,0.24712]
[1736117188342,12.00671628,3642.6,3641.9,3.2078]
[1736117188549,0.99456705,3642.3,3642.2,0.24713]
[1736117188851,1.24169705,3642.3,3642.1,0.24714]
[1736117189049,0.5914,3642.2,3642.1,0.24714]
[1736117190544,6.61684399,3642.2,3642.1,0.24714]
[1736117191449,1.00321024,3642.2,3642.1,0.24714]
[1736117191751,1.59431024,3642.2,3642.1,0.24714]
[1736117192151,4.80211024,3642.2,3641.5,0.99456705]
[1736117192354,0.99456705,3642.0,3641.5,0.99456705]
[1736117192656,0.99456705,3642.0,3641.8,0.24716]
[1736117192657,0.6073,3641.9,3641.8,0.24716]
[1736117194051,1.01911024,3641.9,3641.8,0.24716]
[1736117195548,1.01911024,3641.9,3641.7,0.24717]
[1736117195748,1.56416705,3641.8,3641.7,0.24717]
[1736117196354,5.2028391,3641.8,3641.7,0.24717]
[1736117198755,5.2028391,3641.8,3641.1,3.43020091]
[1736117198957,0.5736,3641.7,3641.2,0.99456705]
[1736117199155,1.24174705,3641.6,3641.4,0.24718]
[1736117199647,3.39251372,3641.6,3641.4,0.24718]
[1736117199850,3.39251372,3641.6,3641.3,0.24719]
[1736117200653,0.99456705,3641.4,3641.1,3.43020091]
[1736117200953,0.5692,3641.3,3641.2,0.2472]
[1736117201157,1.1487,3641.3,3641.2,0.2472]
[1736117202354,1.1487,3641.3,3641.1,3.45501]
[1736117202653,0.5561,3641.2,3641.1,3.45501]
[1736117203752,1.55066705,3641.2,3641.1,3.45501]
[1736117204153,1.55066705,3641.2,3641.0,0.24721]
[1736117204454,1.55066705,3641.2,3641.1,0.24721]
[1736117205762,3.70143372,3641.2,3641.1,0.24721]
[1736117209955,5.18965235,3641.2,3640.7,4.3784]
[1736117210353,2.14935485,3641.0,3640.9,0.24722]
[1736117212665,3.1439219,3641.0,3640.9,0.24722]
[1736117215463,0.99456705,3641.0,3640.9,0.24722]
[1736117217064,0.99456705,3641.0,3640.8,0.24723]
[1736117217265,1.55736705,3640.9,3640.8,0.24723]
[1736117218064,3.70789399,3640.9,3640.8,0.24723]
[1736117223471,1.55736705,3640.9,3640.8,0.24723]
[1736117226770,4.78422886,3640.9,3640.8,0.24723]
[1736117227971,5.19636004,3640.9,3640.8,0.24723]
[1736117229273,1.96949823,3640.9,3640.8,0.24723]
[1736117230277,1.55736705,3640.9,3640.8,0.24723]
[1736117231081,1.96949823,3640.9,3640.8,0.24723]
[1736117232279,6.2729201,3640.9,3640.8,0.24723]
[1736117236179,12.95416921,3640.9,3640.8,0.24723]
[1736117237380,7.35777052,3640.9,3640.8,0.24723]
[1736117238385,12.95416921,3640.9,3640.8,0.24723]
[1736117240586,7.56589692,3640.9,3640.8,0.24723]
[1736117240780,7.56589692,3640.9,3640.3,0.99456705]
[1736117240987,0.6077,3640.8,3640.3,0.99456705]
[1736117241187,0.5944,3640.7,3640.6,0.24724]
[1736117243085,1.00653118,3640.7,3640.6,0.24724]
[1736117244693,11.98088381,3640.7,3640.6,0.24724]
[1736117246090,6.5865962,3640.7,3640.6,0.24724]
[1736117247187,1.00653118,3640.7,3640.6,0.24724]
[1736117247790,6.5865962,3640.7,3640.6,0.24724]
[1736117257496,7.58116325,3640.7,3640.6,0.24724]
[1736117258688,6.98676325,3640.7,3640.6,0.24724]
[1736117260902,7.59886325,3640.7,3640.6,0.24724]
[1736117268603,6.6042962,3640.7,3640.6,0.24724]
[1736117272108,7.59886325,3640.7,3640.3,0.4639]
[1736117272308,3.2078,3640.6,3640.5,0.24725]
[1736117272513,9.1999962,3640.6,3640.5,0.24725]
[1736117273699,9.1999962,3640.6,3640.1,0.4639]
[1736117273903,0.5948,3640.5,3640.3,0.24726]
[1736117274507,0.84205,3640.5,3640.3,0.24726]
[1736117274712,1.83661705,3640.5,3640.3,0.24726]
[1736117274906,5.9921962,3640.4,3640.3,0.24726]
[1736117275406,0.24727,3640.3,3640.1,0.24728]
[1736117275613,1.56216705,3640.2,3639.6,2.63226705]
[1736117275906,7.55436325,3640.2,3639.6,1.0436]
[1736117276111,0.5948,3640.1,3639.9,0.24729]
[1736117276610,0.5948,3640.1,3639.6,2.03816705]
[1736117276811,11.39192572,3640.0,3639.9,0.24729]
[1736117278215,5.9921962,3640.0,3639.9,0.24729]
[1736117279409,1.40669823,3640.0,3639.4,3.2078]
[1736117279610,0.99456705,3639.8,3639.6,0.24731]
[1736117279809,1.1656,3639.7,3639.6,0.24731]
[1736117280011,1.7512,3639.7,3639.6,0.24731]
[1736117280716,7.7433962,3639.7,3639.6,0.24731]
[1736117281615,2.16333118,3639.7,3639.6,0.24731]
[1736117282113,2.16333118,3639.7,3638.3,3.2078]
[1736117282313,2.16333118,3639.7,3638.8,0.24737]
[1736117282314,0.99456705,3638.9,3638.8,0.24737]
[1736117283110,1.1652,3639.1,3638.4,12.27604275]
[1736117283411,2.15976705,3639.1,3639.0,0.24735]
[1736117284515,2.15976705,3639.1,3638.4,0.99456705]
[1736117284714,0.99456705,3638.9,3638.4,2.05256705]
[1736117285015,0.99456705,3638.9,3638.8,0.24737]
[1736117286014,4.30603603,3639.0,3638.9,0.24736]
[1736117286214,4.30603603,3639.2,3639.1,0.24735]
[1736117286511,4.30603603,3639.2,3639.1,2.29991705]
[1736117287113,2.15230727,3639.5,3639.1,7.05256705]
[1736117287314,1.13222727,3639.5,3639.4,4.44969705]
[1736117287512,3.04851818,3639.7,3639.6,0.24731]
[1736117287713,2.54063818,3639.7,3639.6,6.24187705]
[1736117287914,5.38254503,3640.1,3640.0,0.24728]
[1736117288114,5.38254503,3640.1,3640.0,4.44964705]
[1736117288411,1.55146705,3640.6,3640.0,4.20236705]
[1736117288619,1.55146705,3640.6,3640.5,0.24725]
[1736117288810,0.5569,3640.6,3640.5,0.24725]
[1736117289215,5.38254503,3641.0,3640.4,0.99456705]
[1736117289216,3.2078,3640.9,3640.4,0.99456705]
[1736117289516,5.98134503,3641.0,3640.9,0.24722]
[1736117289719,0.5988,3641.0,3640.9,0.24722]
[1736117290321,6.37711208,3641.3,3641.2,0.2472]
[1736117291224,0.5988,3641.4,3641.3,0.2472]
[1736117292420,1.01089214,3641.4,3641.3,0.2472]
[1736117295219,0.5988,3641.4,3641.3,0.2472]
[1736117297124,3.2078,3641.9,3641.7,0.24716]
[1736117297422,3.2078,3641.9,3641.8,0.24716]
[1736117298529,4.17194231,3641.9,3641.8,0.24716]
[1736117299925,3.7599,3641.9,3641.8,0.24716]
[1736117304040,0.5521,3641.9,3641.8,0.24716]
[1736117311542,0.5628,3642.1,3641.7,4.20334135]
[1736117311741,0.5628,3642.1,3642.0,1.24269135]
[1736117312144,0.6114,3642.3,3642.0,0.99554135]
[1736117312343,0.6114,3642.3,3642.2,1.24268135]
[1736117312538,0.6114,3642.3,3642.2,2.30268135]
[1736117313235,0.6114,3642.3,3642.2,1.30714]
[1736117313636,0.562,3642.8,3642.2,1.06]
[1736117313841,0.562,3642.8,3642.7,0.2471]
[1736117316448,0.562,3642.8,3642.7,2.45223403]
[1736117316643,3.2078,3643.5,3642.7,2.20513403]
[1736117316847,0.5666,3643.4,3643.3,0.24706]
[1736117317044,0.5666,3643.4,3643.3,1.30706]
[1736117324446,3.2078,3643.5,3643.4,0.24705]
[1736117326753,0.5594,3643.7,3643.6,0.24704]
[1736117329949,0.5594,3643.7,3643.0,3.2078]
[1736117330149,0.5594,3643.7,3642.0,1.50195354]
[1736117330150,2.20513403,3643.3,3642.4,3.2078]
[1736117330345,2.20513403,3643.3,3642.4,4.2668]
[1736117330545,0.24708,3643.0,3642.6,0.2471]
[1736117330848,1.1783,3642.9,3642.4,4.2668]
[1736117331051,1.1783,3642.9,3642.5,1.30611]
[1736117331052,3.2078,3642.8,3642.5,1.30611]
[1736117332452,2.20513403,3642.7,3641.3,3.2078]
[1736117332658,3.2078,3642.1,3641.8,0.24716]
[1736117332955,0.24716,3641.8,3641.5,0.1371]
[1736117333145,0.24716,3641.8,3641.4,0.24719]
[1736117333345,0.24716,3641.8,3641.3,0.24719]
[1736117333951,0.24716,3641.8,3641.2,1.062]
[1736117334355,0.24716,3641.8,3641.3,0.24719]
[1736117339563,0.24716,3641.8,3641.4,0.24719]
[1736117339756,3.2078,3641.9,3641.0,3.2078]
[1736117339961,0.24717,3641.7,3641.3,0.2472]
[1736117340459,2.20513403,3641.8,3640.8,2.20513403]
[1736117340664,0.24719,3641.5,3641.1,1.31021]
[1736117340865,0.24719,3641.5,3641.1,1.063]
[1736117341265,0.24718,3641.6,3641.1,1.31021]
[1736117341660,2.20513403,3641.8,3640.5,5.41293403]
[1736117341870,0.24719,3641.5,3641.0,0.24721]
[1736117344770,0.24719,3641.5,3640.5,5.41293403]
[1736117344968,0.24719,3641.5,3641.1,0.24721]
[1736117345370,2.20513403,3641.4,3640.5,3.2078]
[1736117345674,0.24723,3640.9,3640.5,0.24725]
[1736117345866,1.7839,3640.8,3640.0,1.6301]
[1736117346071,1.7839,3640.8,3640.6,0.24724]
[1736117346569,1.7839,3640.8,3640.5,0.24724]
[1736117347167,1.7839,3640.8,3640.0,1.6301]
[1736117347368,1.7839,3640.8,3640.6,0.24724]
[1736117348270,1.7839,3640.8,3640.0,1.6301]
[1736117348470,1.7839,3640.8,3640.7,0.24724]
[1736117350674,2.03113,3640.8,3640.6,0.24724]
[1736117350875,1.7839,3640.8,3640.6,0.24724]
[1736117351972,2.03113,3640.8,3640.5,0.24724]
[1736117352978,2.03113,3640.8,3640.6,0.24724]
[1736117353375,3.2078,3640.7,3640.0,1.063]
[1736117353575,3.45504,3640.7,3640.5,0.24725]
[1736117355080,3.45504,3640.7,3640.6,0.24724]
[1736117355979,3.2078,3640.7,3640.6,0.24724]
[1736117358676,0.24725,3640.6,3640.4,0.24725]
[1736117359674,0.24725,3640.6,3640.5,0.24725]
[1736117361374,0.24725,3640.6,3640.4,0.24725]
[1736117361578,0.24725,3640.6,3640.5,0.24725]
[1736117361786,0.24725,3640.6,3639.9,3.13719128]
[1736117361974,0.24725,3640.6,3640.4,0.24725]
[1736117362379,3.2078,3640.7,3640.3,0.24726]
[1736117362380,0.24726,3640.5,3640.3,0.24726]
[1736117362573,0.24726,3640.5,3639.9,3.13719128]
[1736117362978,0.24726,3640.5,3640.3,0.24726]
[1736117363973,0.24725,3640.6,3640.4,0.24725]
[1736117366876,3.2078,3640.7,3639.6,2.28608]
[1736117366877,0.24726,3640.4,3639.6,2.28608]
[1736117367181,0.24726,3640.4,3640.1,0.24727]
[1736117367382,0.24726,3640.4,3639.6,2.28608]
[1736117367578,0.24725,3640.5,3640.2,0.24727]
[1736117368889,3.2078,3640.7,3639.7,1.073]
[1736117369084,0.24725,3640.6,3640.4,0.24726]
[1736117369885,0.24725,3640.6,3640.5,0.24725]
[1736117370492,3.45505,3640.6,3640.5,0.24725]
[1736117371282,3.45505,3640.6,3640.4,0.24725]
[1736117371489,3.45505,3640.6,3640.5,0.24725]
[1736117371693,3.2078,3640.6,3639.9,0.61824]
[1736117371994,3.2078,3640.6,3640.5,0.24725]
[1736117372489,3.2078,3640.6,3640.4,1.00287612]
[1736117372691,3.2078,3640.6,3640.5,0.82845]
[1736117374990,3.2078,3640.6,3640.5,0.24725]
[1736117377593,6.84141407,3640.6,3640.5,0.24725]
[1736117378092,3.63361407,3640.6,3640.5,0.24725]
[1736117378689,3.63165871,3640.6,3640.5,0.24725]
[1736117379094,3.21948013,3640.6,3640.5,0.24725]
[1736117379998,2.27058013,3640.6,3640.5,10.92788403]
[1736117380194,2.25598013,3640.6,3640.5,10.92788403]
[1736117380697,0.41217858,3640.6,3640.5,10.92788403]
[1736117380896,8.58e-06,3640.6,3640.5,10.92788403]
[1736117381791,5.38254503,3640.9,3640.5,10.68063403]
[1736117381997,7.49314211,3641.5,3641.4,0.24719]
[1736117383194,3.2078,3641.5,3641.4,0.24719]
[1736117386901,7.49314211,3641.5,3641.4,0.24719]
[1736117387805,3.2078,3641.5,3641.4,0.24719]
[1736117388599,7.49314211,3641.5,3641.4,0.24719]
[1736117390507,4.28534211,3641.5,3641.4,0.24719]
[1736117391303,4.28534211,3641.6,3641.5,0.24718]
[1736117394200,4.28534211,3641.6,3641.3,1.073]
[1736117394201,4.28534211,3641.7,3641.3,1.073]
[1736117394410,4.28534211,3641.7,3641.6,0.24718]
[1736117399414,7.49314211,3641.8,3641.6,0.24717]
[1736117400107,7.49314211,3641.8,3641.7,0.24717]
[1736117400609,7.74030211,3641.8,3641.5,0.24718]
[1736117400815,7.49314211,3641.8,3641.6,0.24717]
[1736117401017,7.74030211,3641.8,3641.6,0.24717]
[1736117401213,7.49314211,3641.8,3641.0,3.2078]
[1736117401512,0.24721,3641.1,3640.8,1.071]
[1736117401712,1.2237,3641.0,3640.8,1.31823]
[1736117404317,1.2237,3641.0,3640.2,3.2078]
[1736117404513,0.83593,3640.9,3640.6,0.24724]
[1736117405415,0.24724,3640.7,3640.4,1.31825]
[1736117405617,0.24724,3640.7,3640.4,0.24725]
[1736117405915,0.24724,3640.7,3640.4,1.31825]
[1736117407026,0.24724,3640.7,3640.5,0.24725]
[1736117410020,0.41217493,3640.6,3640.5,0.24725]
[1736117412714,0.41217493,3640.6,3640.4,0.24725]
[1736117413817,0.41217493,3640.6,3640.5,0.24725]
[1736117414422,4.69751704,3640.7,3640.5,0.24725]
[1736117415212,4.69751704,3640.7,3640.3,2.06734405]
[1736117415419,4.69751704,3640.7,3640.6,0.24724]
[1736117416918,0.41217493,3640.7,3640.3,2.06734405]
[1736117417329,0.41217493,3640.7,3640.6,0.24724]
[1736117417621,14.46723052,3640.8,3640.6,0.24724]
[1736117418719,0.41217493,3640.7,3640.6,0.24724]
[1736117420222,0.24724,3640.7,3640.6,0.24724]
[1736117421021,1.24358405,3640.7,3640.6,0.24724]
[1736117421421,1.65575898,3640.7,3640.6,0.24724]
[1736117421625,1.65575898,3640.7,3640.2,1.071]
[1736117422124,1.40851898,3640.7,3640.6,0.24724]
[1736117422315,1.40851898,3640.7,3639.5,3.42321671]
[1736117422518,0.99634405,3640.0,3639.9,0.24729]
[1736117423117,3.14862602,3640.0,3639.9,0.24729]
[1736117423519,2.15228197,3640.0,3639.9,0.24729]
[1736117424520,3.01802405,3640.2,3639.9,0.24729]
[1736117424521,2.15228197,3640.1,3639.9,0.24729]
[1736117424919,0.99634405,3640.0,3639.9,0.24729]
[1736117427335,0.99634405,3640.0,3639.3,3.2078]
[1736117427529,0.99634405,3639.7,3639.3,3.2078]
[1736117427725,0.5757,3639.6,3639.3,3.45513]
[1736117427929,1.1954,3639.6,3639.3,3.45513]
[1736117428432,3.34718161,3639.6,3639.3,3.45513]
[1736117429022,3.34718161,3639.6,3639.3,3.2078]
[1736117429226,3.34718161,3639.6,3639.4,0.24732]
[1736117429632,1.1954,3639.6,3639.4,0.24732]
[1736117430729,0.5692,3639.5,3639.4,0.24732]
[1736117436038,1.56554405,3639.5,3639.4,0.24732]
[1736117439938,0.5692,3639.5,3639.4,0.24732]
[1736117440334,0.5757,3639.6,3639.5,0.24732]
[1736117443536,2.15178161,3639.7,3639.6,0.24731]
[1736117445536,4.22160375,3639.8,3639.7,0.24731]
[1736117446941,1.40862509,3639.8,3639.7,0.24731]
[1736117447241,0.41228104,3639.8,3639.7,0.24731]
[1736117447840,1.2138,3639.9,3639.8,0.2473]
[1736117448845,1.62608104,3639.9,3639.8,0.2473]
[1736117449844,5.93064499,3639.9,3639.8,0.2473]
[1736117455145,1.62608104,3639.9,3639.8,0.2473]
[1736117456247,1.2138,3639.9,3639.8,0.2473]
[1736117456650,1.2138,3639.9,3639.4,1.066]
[1736117456842,1.2138,3639.9,3639.8,0.2473]
[1736117457543,6.81636861,3639.9,3639.8,0.2473]
[1736117460250,12.19891364,3639.9,3639.8,0.2473]
[1736117461645,12.44620364,3639.9,3639.8,0.2473]
[1736117466046,10.98511364,3639.9,3639.8,0.2473]
[1736117466253,12.40000364,3639.9,3639.8,0.2473]
[1736117466950,7.01745861,3639.9,3639.8,0.2473]
[1736117467752,6.77016861,3639.9,3639.8,0.2473]
[1736117468256,1.57988104,3639.9,3639.8,0.2473]
[1736117469858,6.77016861,3639.9,3639.8,0.2473]
[1736117472163,0.24732,3639.5,3639.3,0.24733]
[1736117472365,0.5878,3639.4,3639.3,0.24733]
[1736117473161,0.5878,3639.4,3639.1,7.52862971]
[1736117473356,0.636,3639.3,3639.2,0.24734]
[1736117475061,11.63763876,3639.3,3639.2,0.24734]
[1736117475362,12.25263876,3639.3,3639.2,0.24734]
[1736117476763,12.25263876,3639.3,3639.2,1.31334]
[1736117479163,12.25263876,3639.3,3639.2,0.24734]
[1736117481171,6.85356861,3639.3,3639.2,0.24734]
[1736117482666,7.10090861,3639.3,3638.9,3.2078]
[1736117482867,6.85356861,3639.3,3639.1,0.24734]
[1736117484564,6.85356861,3639.3,3639.2,0.24734]
[1736117484965,7.6464142,3639.3,3639.2,0.24734]
[1736117485164,7.6464142,3639.3,3639.1,0.24734]
[1736117485370,7.6464142,3639.3,3638.9,4.20414405]
[1736117485672,7.6464142,3639.3,3639.2,0.24734]
[1736117487072,13.25284229,3639.3,3639.2,0.24734]
[1736117491565,12.25649824,3639.3,3639.2,0.24734]
[1736117494574,6.85742809,3639.3,3639.2,0.24734]
[1736117495470,1.6633188,3639.3,3639.2,0.24734]
[1736117497676,2.90700285,3639.3,3638.9,3.2078]
[1736117497876,0.99634405,3639.1,3639.0,0.24735]
[1736117499570,5.72025559,3639.1,3639.0,0.24735]
[1736117511281,1.40866285,3639.1,3639.0,0.24735]
[1736117511484,0.4123188,3639.1,3639.0,0.24735]
[1736117512392,0.4123188,3639.2,3639.1,0.24735]
[1736117513995,5.54421817,3639.2,3639.1,0.24735]
[1736117514995,10.94328832,3639.2,3639.1,0.24735]
[1736117517198,5.54421817,3639.2,3639.1,0.24735]
[1736117517392,5.54421817,3639.2,3639.1,1.24369405]
[1736117517593,4.98621817,3639.2,3639.1,1.24369405]
[1736117517798,3.83681817,3639.2,3639.1,6.24369405]
[1736117518100,2.07559817,3639.2,3639.1,6.24369405]
[1736117518300,1.13045817,3639.2,3639.1,6.24369405]
[1736117518499,3.2378596,3639.3,3639.1,5.99634405]
[1736117518800,3.2378596,3639.3,3639.2,0.24734]
[1736117518995,1.9748196,3639.3,3639.2,0.24734]
[1736117519195,0.8235896,3639.3,3639.2,5.24734]
[1736117519394,0.3378196,3639.3,3639.2,5.24734]
[1736117519795,4.80864405,3640.5,3639.2,5.24734]
[1736117519796,2.15740415,3639.7,3639.6,0.24731]
[1736117519991,2.15740415,3639.7,3639.6,5.51345405]
[1736117520197,2.15740415,3639.7,3639.6,10.51345405]
[1736117521307,2.15740415,3639.7,3639.6,5.51345405]
[1736117521899,2.15740415,3639.8,3639.7,0.24731]
[1736117523402,2.15740415,3639.9,3639.8,0.2473]
[1736117524809,2.15740415,3640.0,3639.9,0.24729]
[1736117525306,2.15740415,3640.0,3639.9,1.24363405]
[1736117527306,1.2355,3640.3,3639.9,0.99634405]
[1736117527307,2.15740415,3640.2,3639.9,0.99634405]
[1736117527605,2.15740415,3640.2,3640.1,0.24728]
[1736117528006,2.15740415,3640.2,3640.1,1.24362405]
[1736117528707,1.2355,3640.3,3640.2,0.24727]
[1736117529006,2.15740415,3640.4,3640.3,0.24726]
[1736117529196,2.15740415,3640.4,3640.3,2.30560405]
[1736117530009,0.6045,3640.5,3640.4,0.24726]
[1736117537815,0.6045,3640.5,3640.3,3.2078]
[1736117538112,0.24727,3640.3,3639.9,0.24729]
[1736117538309,0.99634405,3639.9,3639.8,0.24729]